bitfinex/quotes_BTCUSD_20240803
["timestamp","ask_amount","ask_price","bid_price","bid_amount"]
[1722710739780,1.12623377,60389.0,60388.0,0.00083]
[1722710739939,1.13923377,60389.0,60388.0,0.00083]
[1722710740736,0.30786177,60389.0,60388.0,0.00083]
[1722710740942,0.98423377,60389.0,60388.0,0.00183]
[1722710741143,0.32186177,60389.0,60388.0,0.00183]
[1722710741351,0.65304777,60389.0,60388.0,0.00183]
[1722710741551,0.02596877,60389.0,60388.0,0.00083]
[1722710741829,0.02596877,60389.0,60388.0,0.00792289]
[1722710741982,0.03996877,60389.0,60388.0,0.00083]
[1722710742197,0.05396877,60389.0,60388.0,0.00892289]
[1722710742390,0.05396877,60389.0,60388.0,0.34026878]
[1722710742601,0.05396877,60389.0,60388.0,1.10265078]
[1722710742770,0.05396877,60389.0,60388.0,1.70684178]
[1722710742980,0.05396877,60389.0,60388.0,1.37565078]
[1722710743203,0.05396877,60389.0,60388.0,1.37465078]
[1722710743204,0.02596877,60389.0,60388.0,1.37465078]
[1722710743602,0.04896877,60389.0,60388.0,1.37565078]
[1722710743874,0.04896877,60389.0,60388.0,1.70684178]
[1722710744081,0.03496877,60389.0,60388.0,1.70784178]
[1722710744313,0.1592,60414.0,60392.0,0.002]
[1722710744501,0.165522,60415.0,60396.0,0.002]
[1722710744703,0.165529,60413.0,60403.0,0.154]
[1722710744907,0.1266,60416.0,60408.0,0.331081]
[1722710745136,0.1522,60420.0,60410.0,0.33107]
[1722710745270,0.331016,60420.0,60411.0,0.16575089]
[1722710745475,0.165521,60416.0,60412.0,0.00703471]
[1722710745685,0.118,60421.0,60412.0,0.00703471]
[1722710745686,0.91055305,60413.0,60412.0,0.00703471]
[1722710745886,0.91055305,60413.0,60396.0,0.2701]
[1722710745887,0.331069,60411.0,60396.0,0.2701]
[1722710746227,0.41401705,60405.0,60402.0,0.00705894]
[1722710746424,0.283554,60403.0,60402.0,0.00705894]
[1722710746765,0.283554,60403.0,60400.0,0.165561]
[1722710746766,0.118,60403.0,60400.0,0.165561]
[1722710746966,0.118,60403.0,60398.0,0.165567]
[1722710747116,0.165557,60402.0,60401.0,0.00706137]
[1722710747327,0.165567,60399.0,60395.0,0.16575089]
[1722710747527,0.118,60403.0,60402.0,0.001]
[1722710747528,0.283554,60403.0,60402.0,0.001]
[1722710747733,0.118,60403.0,60397.0,0.331139]
[1722710747942,0.004,60403.0,60397.0,0.16575089]
[1722710748098,0.01,60403.0,60401.0,0.165559]
[1722710748296,0.165557,60402.0,60400.0,0.001]
[1722710748548,0.331108,60404.0,60398.0,0.00706864]
[1722710748749,0.006,60403.0,60397.0,0.16575089]
[1722710748946,0.165564,60400.0,60397.0,0.16575089]
[1722710749144,0.16556,60401.0,60398.0,0.00706864]
[1722710749371,0.165557,60402.0,60398.0,0.17263564]
[1722710749921,0.006,60403.0,60398.0,0.00706864]
[1722710749922,0.16556,60401.0,60398.0,0.00706864]
[1722710750298,0.165564,60400.0,60398.0,0.00706864]
[1722710750501,0.003,60402.0,60398.0,0.00706864]
[1722710750656,0.506696,60399.0,60398.0,0.00706864]
[1722710750861,1.158958,60399.0,60398.0,0.00706864]
[1722710751090,0.331131,60399.0,60394.0,0.165578]
[1722710751300,0.002,60401.0,60395.0,0.1728268]
[1722710751499,0.002,60401.0,60397.0,0.33114]
[1722710751500,0.002,60400.0,60397.0,0.33114]
[1722710751698,0.002,60400.0,60399.0,0.827827]
[1722710751846,0.118,60408.0,60402.0,0.331112]
[1722710752051,0.350991,60425.0,60399.0,0.16575089]
[1722710752052,0.165529,60413.0,60407.0,0.331087]
[1722710752247,0.165529,60413.0,60407.0,0.49683789]
[1722710752497,0.165529,60413.0,60409.0,0.165537]
[1722710752698,0.449053,60414.0,60410.0,0.00703955]
[1722710752699,0.118,60414.0,60410.0,0.00703955]
[1722710753110,0.16552,60416.0,60412.0,0.165529]
[1722710753319,0.16552,60416.0,60410.0,0.00703955]
[1722710753320,0.118,60419.0,60416.0,0.165516]
[1722710753479,0.331009,60422.0,60416.0,0.165517]
[1722710753680,0.331009,60422.0,60417.0,0.00702259]
[1722710753880,0.118,60425.0,60418.0,0.165512]
[1722710753881,0.12745434,60425.0,60418.0,0.165512]
[1722710754138,0.46858538,60424.0,60419.0,0.00701774]
[1722710754346,0.448972,60429.0,60421.0,0.165503]
[1722710754526,0.165497,60424.0,60420.0,0.165507]
[1722710754669,0.33098,60427.0,60419.0,0.165509]
[1722710754670,0.1655,60423.0,60419.0,0.165509]
[1722710754870,0.1655,60423.0,60416.0,0.49678689]
[1722710754871,0.165508,60421.0,60417.0,0.165515]
[1722710755101,0.19145104,60424.0,60420.0,0.165507]
[1722710755313,0.30308555,60423.0,60421.0,0.0070129]
[1722710755566,0.13758547,60422.0,60421.0,0.166505]
[1722710755774,0.02595304,60424.0,60423.0,0.827497]
[1722710755974,0.02595304,60424.0,60423.0,0.99324789]
[1722710756154,0.028,60425.0,60424.0,0.496491]
[1722710756372,0.028,60425.0,60424.0,0.99323589]
[1722710756568,0.014,60425.0,60424.0,1.00024152]
[1722710756736,0.165475,60432.0,60426.0,0.165489]
[1722710756737,0.165481,60430.0,60426.0,0.165489]
[1722710756971,0.165481,60430.0,60424.0,0.50375052]
[1722710756972,0.165487,60428.0,60424.0,0.17275652]
[1722710757197,0.496459,60428.0,60427.0,0.00699837]
[1722710757404,0.496459,60428.0,60417.0,0.001]
[1722710757405,0.165491,60427.0,60423.0,0.165498]
[1722710757605,0.41386505,60433.0,60424.0,0.002]
[1722710757606,0.08291805,60426.0,60424.0,0.002]
[1722710757806,0.82747,60425.0,60424.0,0.01000563]
[1722710758027,0.08291805,60426.0,60413.0,0.165526]
[1722710758028,0.331024,60419.0,60413.0,0.165526]
[1722710758259,0.165514,60418.0,60417.0,0.16575089]
[1722710758609,0.331024,60419.0,60417.0,0.16575089]
[1722710758610,0.16551,60420.0,60417.0,0.00702259]
[1722710758813,0.331012,60421.0,60417.0,0.00702259]
[1722710759023,0.331012,60421.0,60411.0,0.485061]
[1722710759024,0.015,60428.0,60416.0,0.331036]
[1722710759264,0.165495,60425.0,60421.0,0.165503]
[1722710759492,0.330983,60426.0,60422.0,0.33125189]
[1722710759493,0.165492,60426.0,60422.0,0.33125189]
[1722710759663,0.015,60428.0,60422.0,0.17276137]
[1722710759664,0.009,60428.0,60422.0,0.17276137]
[1722710759867,0.009,60428.0,60426.0,0.165491]
[1722710760078,0.009,60428.0,60427.0,0.00699837]
[1722710760079,0.174486,60428.0,60427.0,0.00699837]
[1722710760288,0.165486,60428.0,60423.0,0.330999]
[1722710760494,0.165483,60429.0,60425.0,0.165493]
[1722710760694,0.330949,60433.0,60429.0,0.165482]
[1722710760695,0.165472,60433.0,60429.0,0.165482]
[1722710760894,0.165475,60432.0,60430.0,0.0069911]
[1722710761132,0.165472,60433.0,60429.0,0.165482]
[1722710761323,0.165475,60432.0,60428.0,0.165485]
[1722710761499,0.330917,60438.0,60430.0,0.1724732]
[1722710761742,0.165467,60435.0,60431.0,0.165476]
[1722710761898,0.014,60433.0,60430.0,0.3379512]
[1722710762102,0.014,60433.0,60430.0,0.1724732]
[1722710762299,0.014,60433.0,60431.0,0.165477]
[1722710762503,0.014,60433.0,60432.0,0.17246835]
[1722710762732,0.014,60433.0,60432.0,0.66889335]
[1722710763274,0.165459,60438.0,60434.0,0.165468]
[1722710763684,0.496394,60436.0,60435.0,0.0067102]
[1722710764047,0.12618788,60444.0,60437.0,0.16546]
[1722710764253,0.83898882,60453.0,60438.0,0.16575089]
[1722710764490,0.71118882,60453.0,60452.0,0.16542]
[1722710764688,0.71118882,60453.0,60452.0,0.99285089]
[1722710764897,0.71118882,60453.0,60452.0,1.60495994]
[1722710765504,0.71118882,60453.0,60452.0,2.26863994]
[1722710765733,0.71118882,60453.0,60452.0,2.03579994]
[1722710765942,0.71118882,60453.0,60452.0,2.06899994]
[1722710766153,0.71118882,60453.0,60452.0,2.03579994]
[1722710766397,0.73918882,60453.0,60452.0,2.03579994]
[1722710766752,0.72518882,60453.0,60452.0,2.03579994]
[1722710766940,0.73712552,60453.0,60452.0,2.05613775]
[1722710767178,0.73812552,60453.0,60452.0,2.05613775]
[1722710767452,0.73812552,60453.0,60452.0,2.03879994]
[1722710767652,0.73912552,60453.0,60452.0,2.04979994]
[1722710767856,0.73812552,60453.0,60452.0,2.03579994]
[1722710767995,0.73812552,60453.0,60452.0,2.03879994]
[1722710768207,0.74012552,60453.0,60452.0,2.04979994]
[1722710769423,0.74012552,60453.0,60452.0,2.04679994]
[1722710769424,0.73912552,60453.0,60452.0,2.04679994]
[1722710769648,0.74012552,60453.0,60452.0,2.04979994]
[1722710770065,0.73812552,60453.0,60452.0,2.03879994]
[1722710770216,0.73812552,60453.0,60452.0,2.04979994]
[1722710770415,0.73912552,60453.0,60452.0,2.06179994]
[1722710770757,0.73812552,60453.0,60452.0,2.03779994]
[1722710771150,0.71418882,60453.0,60452.0,2.04479994]
[1722710771353,0.71418882,60453.0,60452.0,2.05679994]
[1722710771558,0.71418882,60453.0,60452.0,2.07679994]
[1722710771761,0.71418882,60453.0,60452.0,2.08820645]
[1722710771997,0.71218882,60453.0,60452.0,2.04879994]
[1722710772202,0.71218882,60453.0,60452.0,2.06879994]
[1722710772403,0.71218882,60453.0,60452.0,2.04879994]
[1722710772640,0.71118882,60453.0,60452.0,2.07920645]
[1722710772878,0.71218882,60453.0,60452.0,2.08220645]
[1722710773023,0.71218882,60453.0,60452.0,2.03879994]
[1722710774106,0.71318882,60453.0,60452.0,2.05179994]
[1722710774312,0.71318882,60453.0,60452.0,2.07179994]
[1722710774757,0.71318882,60453.0,60452.0,2.04979994]
[1722710775793,0.71318882,60453.0,60452.0,1.71895994]
[1722710775961,0.71318882,60453.0,60452.0,1.59875994]
[1722710776164,0.71318882,60453.0,60452.0,1.11351994]
[1722710776393,0.71318882,60453.0,60452.0,0.18641994]
[1722710776764,0.71318882,60453.0,60452.0,0.68267994]
[1722710776968,0.71318882,60453.0,60452.0,1.34435994]
[1722710777167,0.71318882,60453.0,60452.0,1.95679994]
[1722710777168,0.6934472,60453.0,60452.0,1.95679994]
[1722710777338,0.01026301,60459.0,60458.0,1.442428]
[1722710777541,0.01026301,60459.0,60458.0,2.17788689]
[1722710777799,0.01026301,60459.0,60458.0,2.53534942]
[1722710778046,0.01026301,60459.0,60458.0,2.96915742]
[1722710778255,0.01026301,60459.0,60458.0,2.63834942]
[1722710778459,0.01026301,60459.0,60458.0,3.16094766]
[1722710778668,0.01026301,60459.0,60458.0,3.19950087]
[1722710778875,0.03619365,60459.0,60458.0,3.19950087]
[1722710779090,6.5e-07,60459.0,60458.0,3.21339989]
[1722710779294,6.5e-07,60459.0,60458.0,3.2926724]
[1722710779295,0.001,60459.0,60458.0,3.2926724]
[1722710779520,0.001,60459.0,60458.0,3.2726724]
[1722710779722,0.001,60459.0,60458.0,3.2926724]
[1722710779931,0.001,60459.0,60458.0,3.3066724]
[1722710780137,0.002,60459.0,60458.0,2.9558644]
[1722710780339,0.002,60459.0,60458.0,2.5910564]
[1722710780340,0.001,60459.0,60458.0,2.5910564]
[1722710780544,0.08291805,60481.0,60479.0,0.165346]
[1722710780756,0.70452636,60480.0,60468.0,0.1]
[1722710780959,0.70452636,60480.0,60459.0,0.00157439]
[1722710780960,0.08291805,60469.0,60459.0,0.00157439]
[1722710781375,0.16538,60467.0,60462.0,0.165392]
[1722710781554,0.08291805,60469.0,60458.0,0.014]
[1722710781555,0.330758,60468.0,60458.0,0.014]
[1722710781804,0.08291805,60469.0,60458.0,0.17975089]
[1722710781805,0.330802,60459.0,60458.0,0.17975089]
[1722710781997,0.165365,60472.0,60467.0,0.165378]
[1722710782199,0.165373,60469.0,60468.0,0.16575089]
[1722710782400,0.49612,60469.0,60468.0,0.16575089]
[1722710782620,0.35667002,60471.0,60468.0,0.16575089]
[1722710782848,0.49612,60469.0,60468.0,0.16575089]
[1722710783070,0.001,60459.0,60456.0,0.165408]
[1722710783290,0.001,60459.0,60448.0,0.1456]
[1722710783291,0.001,60459.0,60458.0,0.165404]
[1722710783525,0.001,60459.0,60458.0,0.66196289]
[1722710783728,0.02593202,60471.0,60458.0,0.66196289]
[1722710783729,0.02593202,60471.0,60468.0,0.165375]
[1722710783938,0.02593202,60471.0,60469.0,0.33112289]
[1722710784144,0.02593202,60471.0,60470.0,0.165371]
[1722710784347,0.02593202,60471.0,60470.0,0.33112189]
[1722710784559,0.02593202,60471.0,60470.0,0.66186389]
[1722710784767,0.1557,60479.0,60470.0,0.66186389]
[1722710784768,0.23861805,60479.0,60470.0,0.16575089]
[1722710785021,0.330731,60472.0,60471.0,0.16575089]
[1722710785303,0.165365,60472.0,60471.0,0.17237397]
[1722710785483,0.496096,60472.0,60471.0,0.17237397]
[1722710785687,0.330719,60475.0,60471.0,0.17237397]
[1722710785909,0.165363,60473.0,60471.0,0.17237397]
[1722710786319,0.165365,60472.0,60471.0,0.17237397]
[1722710786551,0.165365,60472.0,60471.0,0.10662308]
[1722710786552,1.102027,60472.0,60471.0,0.10662308]
[1722710786761,1.59324192,60472.0,60471.0,0.10662308]
[1722710786964,1.59324192,60472.0,60471.0,0.10762308]
[1722710786965,1.24551092,60472.0,60471.0,0.10762308]
[1722710787202,1.108027,60472.0,60471.0,0.101]
[1722710787372,1.24550969,60472.0,60471.0,0.101]
[1722710787572,1.24550969,60472.0,60471.0,0.102]
[1722710787812,0.58404769,60472.0,60471.0,0.102]
[1722710788013,0.006,60472.0,60471.0,0.76385589]
[1722710788191,0.006,60472.0,60471.0,1.10121597]
[1722710788329,0.006,60472.0,60471.0,1.27301968]
[1722710788553,0.006,60472.0,60471.0,1.27201968]
[1722710788747,0.006,60472.0,60471.0,1.60275668]
[1722710788954,0.02593088,60476.0,60475.0,1.157502]
[1722710789175,0.02593088,60476.0,60475.0,1.1643416]
[1722710789395,0.02593088,60476.0,60475.0,1.17095501]
[1722710789801,0.0001,60480.0,60479.0,0.826732]
[1722710790024,0.0001,60480.0,60479.0,1.1642866]
[1722710790197,0.0001,60480.0,60479.0,1.17089034]
[1722710791014,0.0001,60480.0,60479.0,1.50158334]
[1722710791195,0.0001,60480.0,60479.0,0.51250434]
[1722710791414,0.0001,60480.0,60479.0,0.8431805]
[1722710791831,0.0001,60480.0,60479.0,0.84317945]
[1722710792032,0.0001,60480.0,60479.0,1.11367945]
[1722710792251,0.0001,60480.0,60479.0,1.44437245]
[1722710792455,0.0001,60480.0,60479.0,1.77506545]
[1722710793010,0.0001,60480.0,60479.0,0.84817945]
[1722710793413,0.00093,60480.0,60479.0,0.35214045]
[1722710793614,0.5788977,60480.0,60479.0,0.18638956]
[1722710793818,0.1383547,60480.0,60479.0,0.84517945]
[1722710794019,0.1383547,60480.0,60479.0,0.84017945]
[1722710794196,0.1383547,60480.0,60479.0,0.34914045]
[1722710794398,0.1383547,60480.0,60479.0,0.50948645]
[1722710794601,0.1383547,60480.0,60479.0,0.50949463]
[1722710794888,0.1383547,60480.0,60479.0,0.84018763]
[1722710795250,0.1383547,60480.0,60479.0,0.84418763]
[1722710795433,0.1383547,60480.0,60479.0,1.50557363]
[1722710795678,0.00093,60480.0,60479.0,1.50557363]
[1722710795871,0.00093,60480.0,60479.0,1.50157363]
[1722710796675,0.00093,60480.0,60479.0,1.83226663]
[1722710796907,0.00193,60480.0,60479.0,1.94326663]
[1722710797414,0.01026301,60482.0,60479.0,1.94326663]
[1722710797415,0.01026301,60482.0,60481.0,1.863951]
[1722710797619,0.010252,60493.0,60490.0,0.826582]
[1722710797811,0.010252,60493.0,60490.0,2.19584502]
[1722710798016,0.010252,60493.0,60490.0,2.20242216]
[1722710798229,0.010252,60493.0,60490.0,2.21242216]
[1722710798433,0.010252,60493.0,60490.0,2.27581381]
[1722710798585,0.010252,60493.0,60490.0,2.31887171]
[1722710798790,0.010252,60493.0,60490.0,2.28887171]
[1722710799192,0.010252,60493.0,60490.0,2.25581381]
[1722710799390,0.01126301,60491.0,60490.0,2.31287171]
[1722710799738,0.01126301,60491.0,60490.0,2.27181381]
[1722710799886,0.01126301,60491.0,60490.0,2.28281236]
[1722710800091,0.01126301,60491.0,60490.0,2.32587026]
[1722710800289,0.01126301,60491.0,60490.0,2.28281236]
[1722710800562,0.01126301,60491.0,60490.0,2.28481236]
[1722710800769,0.01126301,60491.0,60490.0,2.24842216]
[1722710800976,0.01126301,60491.0,60490.0,2.34801236]
[1722710801207,0.01126301,60491.0,60490.0,2.36201236]
[1722710801425,0.01026301,60491.0,60490.0,2.32249712]
[1722710801627,0.01026301,60491.0,60490.0,2.10769309]
[1722710801838,0.01026301,60491.0,60490.0,2.28139818]
[1722710802045,0.01026301,60491.0,60490.0,2.09769309]
[1722710802046,0.01126301,60491.0,60490.0,2.09769309]
[1722710802265,0.01126301,60491.0,60490.0,1.44744149]
[1722710802439,0.01126301,60491.0,60490.0,1.33781463]
[1722710802693,0.01026301,60491.0,60490.0,1.50124763]
[1722710803099,0.01126301,60491.0,60490.0,1.51524763]
[1722710803303,0.01126301,60491.0,60490.0,0.35803263]
[1722710803509,0.01126301,60491.0,60490.0,0.18632803]
[1722710803510,0.17657601,60491.0,60490.0,0.18632803]
[1722710803637,0.50720301,60491.0,60490.0,0.18632803]
[1722710803840,0.01126301,60491.0,60490.0,0.19932803]
[1722710804145,0.01126301,60491.0,60490.0,0.18632803]
[1722710804346,0.01126301,60491.0,60490.0,0.20032803]
[1722710804755,0.01126301,60491.0,60490.0,0.18632803]
[1722710804756,0.50720301,60491.0,60490.0,0.18632803]
[1722710804960,1.11073001,60491.0,60490.0,0.00657714]
[1722710805160,1.11073001,60491.0,60490.0,0.006]
[1722710805542,1.24915542,60491.0,60490.0,0.02]
[1722710806234,1.24815542,60491.0,60490.0,0.006]
[1722710806437,1.25815542,60491.0,60490.0,0.007]
[1722710806591,0.59690142,60491.0,60490.0,0.001]
[1722710806797,0.45947601,60491.0,60490.0,0.001]
[1722710806994,0.46147601,60491.0,60490.0,0.002]
[1722710807170,0.14006301,60491.0,60490.0,0.33864403]
[1722710807388,0.14006301,60491.0,60490.0,0.99991003]
[1722710807592,0.02226301,60491.0,60490.0,1.00091003]
[1722710808176,0.02226301,60491.0,60490.0,1.33154303]
[1722710808621,0.02226301,60491.0,60490.0,1.00091003]
[1722710808997,0.02226301,60491.0,60490.0,0.33964403]
[1722710809383,0.18757601,60491.0,60490.0,0.17432803]
[1722710809588,0.79210301,60491.0,60490.0,0.00857714]
[1722710809786,0.29616301,60491.0,60490.0,0.002]
[1722710810222,0.29616301,60491.0,60490.0,0.00857714]
[1722710810223,1.12273001,60491.0,60490.0,0.00857714]
[1722710810422,1.12273001,60491.0,60490.0,0.002]
[1722710810832,1.12273001,60491.0,60490.0,0.16775089]
[1722710810833,0.29616301,60491.0,60490.0,0.16775089]
[1722710811249,0.29616301,60491.0,60490.0,1.00091003]
[1722710811250,0.02226301,60491.0,60490.0,1.00091003]
[1722710811400,0.04818468,60491.0,60490.0,1.00091003]
[1722710811801,0.02226301,60491.0,60490.0,1.00091003]
[1722710812000,0.04818314,60491.0,60490.0,1.00091003]
[1722710812567,0.04818314,60491.0,60490.0,0.17432803]
[1722710812568,0.54412314,60491.0,60490.0,0.17432803]
[1722710812770,0.87475014,60491.0,60490.0,0.17432803]
[1722710812998,0.16798314,60491.0,60490.0,0.16775089]
[1722710813178,0.16798314,60491.0,60490.0,0.17432803]
[1722710813372,0.04818314,60491.0,60490.0,0.67027703]
[1722710813576,0.04818314,60491.0,60490.0,1.00091003]
[1722710813791,0.02226301,60491.0,60490.0,1.33154303]
[1722710814199,0.04818314,60491.0,60490.0,1.33154303]
[1722710815247,0.04818314,60491.0,60490.0,1.43154303]
[1722710815401,0.02226301,60491.0,60490.0,1.76217603]
[1722710815626,0.02226301,60491.0,60490.0,1.93390321]
[1722710816049,0.01226301,60491.0,60490.0,1.94490321]
[1722710816251,0.01526301,60491.0,60490.0,1.94490321]
[1722710816449,0.01326301,60491.0,60490.0,1.93190321]
[1722710816825,0.01426301,60491.0,60490.0,1.94190321]
[1722710817399,0.01426301,60491.0,60490.0,2.30053621]
[1722710817635,0.01326301,60491.0,60490.0,2.32353621]
[1722710817784,0.01326301,60491.0,60490.0,2.31753621]
[1722710817946,0.01326301,60491.0,60490.0,2.40553492]
[1722710818149,0.01026301,60491.0,60490.0,2.72422665]
[1722710818349,0.00106301,60491.0,60490.0,2.6335617]
[1722710818549,0.00206301,60491.0,60490.0,2.6335617]
[1722710818784,0.00206301,60491.0,60490.0,2.68754024]
[1722710818977,0.00206301,60491.0,60490.0,2.69780324]
[1722710819179,0.00206301,60491.0,60490.0,2.6218247]
[1722710819412,0.00206301,60491.0,60490.0,2.30824161]
[1722710819600,0.00106301,60491.0,60490.0,2.6498247]
[1722710819807,0.00106301,60491.0,60490.0,2.6358247]
[1722710820033,0.00206301,60491.0,60490.0,2.6638247]
[1722710820236,0.00206301,60491.0,60490.0,2.9007247]
[1722710820436,0.00206301,60491.0,60490.0,3.2313577]
[1722710820671,0.00206301,60491.0,60490.0,3.2453577]
[1722710820955,0.00206301,60491.0,60490.0,3.2173577]
[1722710821161,0.00106301,60491.0,60490.0,2.99610503]
[1722710821384,0.00206301,60491.0,60490.0,3.21159763]
[1722710821590,0.00206301,60491.0,60490.0,2.69347203]
[1722710821790,0.00206301,60491.0,60490.0,2.90096839]
[1722710822085,0.00106301,60491.0,60490.0,2.88696839]
[1722710822320,0.00106301,60491.0,60490.0,2.90096839]
[1722710822321,0.00206301,60491.0,60490.0,2.90096839]
[1722710822525,0.001,60491.0,60490.0,2.88696839]
[1722710822952,0.001,60491.0,60490.0,2.87896839]
[1722710823168,0.001,60491.0,60490.0,2.54833539]
[1722710824326,0.001,60491.0,60490.0,2.56833539]
[1722710824529,0.010252,60493.0,60490.0,2.56833539]
[1722710824530,1e-08,60493.0,60492.0,0.1783]
[1722710824817,1e-08,60493.0,60492.0,1.29813367]
[1722710825021,1e-08,60493.0,60492.0,1.96594998]
[1722710825248,1e-08,60493.0,60492.0,2.27657198]
[1722710825451,1e-08,60493.0,60492.0,2.27326727]
[1722710825579,1e-08,60493.0,60492.0,2.29526727]
[1722710825761,0.00100001,60493.0,60492.0,2.63988927]
[1722710826443,0.00100001,60493.0,60492.0,2.28726727]
[1722710826841,0.00100001,60493.0,60492.0,2.26426727]
[1722710827371,0.00100001,60493.0,60492.0,2.27826727]
[1722710827608,0.00100001,60493.0,60492.0,1.3575002]
[1722710828066,0.00100001,60493.0,60492.0,1.7001222]
[1722710828313,0.00100001,60493.0,60492.0,1.6981222]
[1722710828487,0.00100001,60493.0,60492.0,1.90891305]
[1722710828691,0.00100001,60493.0,60492.0,2.02511305]
[1722710828692,1e-08,60493.0,60492.0,2.02511305]
[1722710828926,1e-08,60493.0,60492.0,1.72860011]
[1722710829125,1e-08,60493.0,60492.0,1.73160011]
[1722710829284,1e-08,60493.0,60492.0,1.72260011]
[1722710829666,0.00100001,60493.0,60492.0,1.67440011]
[1722710830599,0.00100001,60493.0,60492.0,1.35377811]
[1722710830984,0.00100001,60493.0,60492.0,1.34377811]
[1722710831272,0.00100001,60493.0,60492.0,1.35377811]
[1722710831619,0.00100001,60493.0,60492.0,1.02315611]
[1722710832022,0.00100001,60493.0,60492.0,1.35377811]
[1722710832200,0.00100001,60493.0,60492.0,1.02315611]
[1722710832401,0.00100001,60493.0,60492.0,1.35377811]
[1722710833430,0.00100001,60493.0,60492.0,1.45387811]
[1722710836827,0.00100001,60493.0,60492.0,1.12325611]
[1722710837026,0.00100001,60493.0,60492.0,0.79263411]
[1722710837228,0.29510001,60493.0,60492.0,0.36201211]
[1722710837427,0.13090001,60493.0,60492.0,0.69263411]
[1722710837605,0.00100001,60493.0,60492.0,1.35387811]
[1722710838615,0.00100001,60493.0,60492.0,0.79263411]
[1722710838969,0.00100001,60493.0,60492.0,0.19670111]
[1722710839126,0.16630801,60493.0,60492.0,0.19670111]
[1722710839461,0.00100001,60493.0,60492.0,0.19670111]
[1722710839802,0.00100001,60493.0,60492.0,0.12767231]
[1722710840012,0.00100001,60493.0,60492.0,0.2934232]
[1722710840670,1e-08,60493.0,60492.0,0.2824232]
[1722710840898,1e-08,60493.0,60492.0,0.2764232]
[1722710841107,1e-08,60493.0,60492.0,0.4437342]
[1722710841285,0.02591909,60493.0,60492.0,0.4437342]
[1722710841505,0.02591909,60493.0,60492.0,0.7743562]
[1722710841910,0.02591909,60493.0,60492.0,1.1049782]
[1722710842557,0.02591909,60493.0,60492.0,0.7743562]
[1722710842760,0.02591909,60493.0,60492.0,0.2784232]
[1722710842761,1e-08,60493.0,60492.0,0.2784232]
[1722710842969,1e-08,60493.0,60492.0,0.4437342]
[1722710843175,0.02591905,60493.0,60492.0,1.1049782]
[1722710843833,0.02591905,60493.0,60492.0,0.7743562]
[1722710844446,0.02591905,60493.0,60492.0,1.1049782]
[1722710845223,0.02591905,60493.0,60492.0,1.4356002]
[1722710845458,0.02591905,60493.0,60492.0,1.5356002]
[1722710845659,0.02591905,60493.0,60492.0,1.90315962]
[1722710846079,1e-08,60493.0,60492.0,1.90315962]
[1722710846281,1e-08,60493.0,60492.0,1.57253762]
[1722710846488,1e-08,60493.0,60492.0,1.5356002]
[1722710847113,1e-08,60493.0,60492.0,1.57182132]
[1722710847838,1e-08,60493.0,60492.0,1.74552973]
[1722710847982,1e-08,60493.0,60492.0,2.07615173]
[1722710848189,1e-08,60493.0,60492.0,1.90444332]
[1722710848564,1e-08,60493.0,60492.0,1.57249774]
[1722710848767,1e-08,60493.0,60492.0,1.24187574]
[1722710849068,1e-08,60493.0,60492.0,1.24188149]
[1722710849208,1e-08,60493.0,60492.0,1.57250349]
[1722710849411,1e-08,60493.0,60492.0,1.90312549]
[1722710849814,1e-08,60493.0,60492.0,1.90512549]
[1722710850001,1e-08,60493.0,60492.0,1.91512549]
[1722710850199,1e-08,60493.0,60492.0,2.06632549]
[1722710850403,1e-08,60493.0,60492.0,2.26103706]
[1722710851267,1e-08,60493.0,60492.0,2.24703706]
[1722710851467,1e-08,60493.0,60492.0,2.08483706]
[1722710851724,1e-08,60493.0,60492.0,1.38668977]
[1722710852044,1e-08,60493.0,60492.0,0.2864232]
[1722710852249,1e-08,60493.0,60492.0,0.7963562]
[1722710852452,1e-08,60493.0,60492.0,0.4657342]
[1722710852650,1e-08,60493.0,60492.0,0.7963562]
[1722710853093,1e-08,60493.0,60492.0,0.2724232]
[1722710853288,1e-08,60493.0,60492.0,0.7723562]
[1722710853402,1e-08,60493.0,60492.0,1.1029782]
[1722710853621,0.02591909,60493.0,60492.0,0.7723562]
[1722710854047,0.02591909,60493.0,60492.0,1.1029782]
[1722710854248,0.02591909,60493.0,60492.0,1.4336002]
[1722710854491,0.02591909,60493.0,60492.0,1.4356002]
[1722710854664,0.02591909,60493.0,60492.0,1.5356002]
[1722710855530,0.02591909,60493.0,60492.0,1.90356343]
[1722710855731,0.02591909,60493.0,60492.0,2.07186343]
[1722710857563,0.02591909,60493.0,60492.0,2.07191072]
[1722710858037,0.02591909,60493.0,60492.0,1.24236672]
[1722710858240,0.32641909,60493.0,60492.0,0.3784232]
[1722710858437,0.49172709,60493.0,60492.0,0.11267231]
[1722710858583,0.82234309,60493.0,60492.0,0.11267231]
[1722710858781,0.32641909,60493.0,60492.0,0.11267231]
[1722710858985,0.49172709,60493.0,60492.0,0.1061]
[1722710859220,0.49172709,60493.0,60492.0,0.11267231]
[1722710859416,0.82234309,60493.0,60492.0,0.11267231]
[1722710859624,1.48357509,60493.0,60492.0,0.1061]
[1722710860205,1.48357509,60493.0,60492.0,0.1021]
[1722710860407,1.48357509,60493.0,60492.0,0.103013]
[1722710860602,1.15295909,60493.0,60492.0,0.105013]
[1722710860988,1.15295909,60493.0,60492.0,0.103013]
[1722710861385,1.15695909,60493.0,60492.0,0.103013]
[1722710861595,1.15695909,60493.0,60492.0,0.101013]
[1722710861799,1.15795909,60493.0,60492.0,0.101013]
[1722710862566,0.82734309,60493.0,60492.0,0.101013]
[1722710864201,1.15795909,60493.0,60492.0,0.101013]
[1722710865645,0.82734309,60493.0,60492.0,0.101013]
[1722710865855,1.15795909,60493.0,60492.0,0.101013]
[1722710866549,0.82734309,60493.0,60492.0,0.101013]
[1722710866745,0.49672709,60493.0,60492.0,0.101013]
[1722710866949,0.82734309,60493.0,60492.0,0.101013]
[1722710867162,1.15795909,60493.0,60492.0,0.101013]
[1722710867380,1.48857509,60493.0,60492.0,0.101013]
[1722710868801,1.49857509,60493.0,60492.0,0.101013]
[1722710869140,1.48857509,60493.0,60492.0,0.101013]
[1722710869547,1.49857509,60493.0,60492.0,0.101013]
[1722710869928,1.82519109,60493.0,60492.0,0.101013]
[1722710870147,1.177348,60483.0,60482.0,0.000913]
[1722710870374,2.06448794,60483.0,60482.0,0.000913]
[1722710870596,2.08748794,60483.0,60482.0,0.000913]
[1722710870807,2.25088313,60483.0,60482.0,0.000913]
[1722710871000,2.11341596,60483.0,60482.0,0.000913]